Workbook

Sheet Main Page
B1: Tool for gap assessment of equipments and vehicles for Solid Waste Management in Urban Local Bodies
B7: Objectives of this tool are to: 1. Carry out a gap assessment of the equipments and vehicles required for Solid waste management 2. Estimate the number of vehicles and equipments to be procured for ensuring 100% coverage of waste management services in the ULB Limitation of this tool: 1. It does not calculate construction cost for any infrastructure establishment like treatment plant, transfer station etc.
B18: Sr.No. | C18: NOTES
B19: 1 | C19: Please fill the sheets in the following order-
B20: i) | C20: Decision Making
B21: ii) | C21: Input Sheet
B22: 2 | C22: The cells which are white in color are the cells which need to be filled by the city. Different cell colors indicate different meaning which is mentioned below:
C23: Light Orange | D23: Value generated automatically
C24: Blue | D24: Questions
C25: White | D25: Data to be filled
B26: 3 | C26: Some of the tables have been accompanied with notes on the side. Please go through the notes before filling in the details.
B27: 4 | C27: In case the ULB does not have vehicles and equipment listed in existing situation section in the Input Sheet, insert zero (0), do not leave the cell blank.
B28: 5 | C28: Placement of community bins is to be decided by the ULB

Sheet Decision Making
B1: As this excel workbook is a tool to find out requirements of vehicles and equipment for SWM, before moving ahead, some decisions have to be taken for accurate estimation, which are mentioned below:
B3: 1 | C3: Proposed average number of trips per day of each vehicle used for Door to Door waste collection (Considering distance of waste disposal site from the ULB) | D3: 3
B4: 2 | C4: Proposed average number of trips of each vehicle per day for collecting waste from bulk generators | D4: 2 | E4: Bulk generators means waste generated from vegetable, meat, fruit & flower markets and kitchen of hotels and restaurants. It is recommended that if the ULB has composting plant then the waste generated from bulk generators should be collected separately and should be disposed directly to the plant.
B5: 3 | C5: Beat length of road for street sweeping in meters | D5: 600

Sheet Input sheet
A11: A. CITY PROFILE
A16: General Information
A17: 1 | B17: Name of the ULB
A18: 2 | B18: Name of the head of the ULB
A19: 3 | B19: Area of the ULB in sq.km.
A20: 4 | B20: Inhabited Area (sq.km.)
A21: 5 | B21: Number of Election Wards
A22: 6 | B22: Total Population of the ULB (Census 2001)
A23: 7 | B23: Total Population of the ULB (Census 2011)
A24: 8 | B24: Total Number of Households (Census 2011)
A25: 9 | B25: Household Size (Census 2011) | C25: =IFERROR(C23/C24, 0) -> 0
A26: 10 | B26: Decadal Growth Rate of City Population (1981-1991)
A27: 11 | B27: Decadal Growth Rate of City Population (1991-2001)
A28: 12 | B28: Decadal Growth Rate of City Population (2001-2011) | C28: =IFERROR((C23-C22)/C22,0) -> 0
A29: 13 | B29: Yearly Growth Rate of City Population | C29: =IFERROR(C28/10,0) -> 0
A30: 14 | B30: Total Population of the ULB (Current year) (As per latest survey conducted after census 2011 or based on the populaion projection)
A31: 15 | B31: Total Number of Households (Current Year)
A32: 16 | B32: Households in peri-urban areas
A33: 17 | B33: Number of Slum Settlements/Pockets (As per latest slum survey conducted after census 2011, SFCPoA etc.) | D33: Mention all slums as per list with ULB, use any latest surveys done under affordable housing mission/PMAY
A34: 18 | B34: Number of Slum Households (As per latest slum survey conducted after census 2011, SFCPoA etc.)
A35: 19 | B35: Slum Population (As per latest slum survey conducted after census 2011, SFCPoA etc.)
A36: 20 | B36: Total Number of Properties (Current Year) | C36: =C37+C38 -> 0
A37: 20.1 | B37: Number of Residential Properties (Current Year) | D37: Number of residential and non-residential poperties registered with the ULB can be taken from property tax software
A38: 20.2 | B38: Number of Non-Residential (Commercial) Properties (2017)
A39: 21 | B39: Approx. area covered under Urban Village (Gamtal) in sq.km. (old city area where road width is less than 3m)
A40: 22 | B40: Approx. Number of Households in Urban Village (Gamtal)
A41: 23 | B41: Total Length of Road in kms (Both Kutcha and Pucca) | D41: Include the length of highways in case present in city limits
A42: 23.1 | B42: Total Length of Roads with Divider in kms
A43: 23.2 | B43: Approx. Length of Roads less than 3m width (kms)
A45: B. Existing Scenario of Solid Waste
A47: S.No. | B47: WASTE GENERATION
A48: 1 | B48: Residential Generators | D48: Number | E48: Estimated waste Generation (TPD)
A49: 1.1 | B49: Households in Slum areas | D49: ='Input sheet'!C34 -> 0
A50: 1.2 | B50: Households in Urban Village (Gamtal) | D50: ='Input sheet'!C40 -> 0
A51: 1.3 | B51: Households in the Areas Other than slums and Urban Village (Gamtal) | D51: ='Input sheet'!C31-'Input sheet'!D49-'Input sheet'!D50 -> 0
A52: Total Waste generated from Residential Generators | D52: =SUM(D49:D51) -> 0 | E52: =SUM(E49:E51) -> 0
A53: 2 | B53: Bulk waste Generators
A54: 2.1 | B54: Kitchens of Hotels, Restaurants, mess and canteen of hostels | D54: =SUM(D55:D58) -> 0 | E54: =SUM(E55:E58) -> 0 | F54: Estimate the number of hotels (which has boarding and lodging Facilities) and Restaurants in the ULB and then estimate the approximate quantity of waste generated from these properties. Number of hotels can be taken from license registered with the ULB (or may be it called trade license data) This is only applicable to small bulk generators as it is assumed that large bulk generators will manage their waste in a decentralized manner
A55: 2.1.1 | B55: Hotels
A56: 2.1.2 | B56: Restaurants
A57: 2.1.3 | B57: Mess/ Canteen of Hostels and Institutes
A58: 2.1.4 | B58: Marriage Halls/ Party plots
A59: 2.2 | B59: Religious Places (Temple, Gurudwara, Mosque etc.)
A60: 2.3 | B60: Markets:
A61: 2.3.1 | B61: Vegetable
A62: 2.3.2 | B62: Flower and fruit
A63: 2.3.3 | B63: Meat and Fish
A64: 2.3.4 | B64: APMC Market
A65: 2.4 | B65: Waste from slaughter house
A66: Total Waste generated from Bulk Generators | E66: =E54+E59+SUM(E61:E64)+E65 -> 0
A67: 3 | B67: Non Residential (Commercial) Generators
A68: 3.1 | B68: Malls and Shopping Complexes
A69: 3.2 | B69: Other Commercial Areas | F69: This includes shops, banks etc.
A70: 3.3 | B70: Institutions | F70: This Includes educational institutions like schools, colleges, social institutions like trust buildings, town halls etc.
A71: 3.4 | B71: Non-Hazardous Industrial Waste | F71: non-hazardous industrial waste generated within the jurisdiction of the ULB
A72: Total Waste generated from Non-Residential (Commercial) Generators | E72: =SUM(E68:E71) -> 0
A73: 4 | B73: Waste from Street Sweeping
A74: 5 | B74: Construction and Demolition Debris Waste (C&D waste)
A75: Total Waste Generation in the ULB | E75: =E52+E66+E72+E74+E73 -> 0
A77: 6 | B77: Characterisation of waste
A78: Constituents of waste | C78: % of waste
A79: 6.1 | B79: Paper and cardboard
A80: 6.2 | B80: Rubber, leather and Synthetics
A81: 6.3 | B81: Glass
A82: 6.4 | B82: Metal
A83: 6.5 | B83: Compostable matter
A84: 6.6 | B84: Plastic
A85: 6.7 | B85: Inert
A86: Total | C86: =IF(SUM(C79:C85)=1,SUM(C79:C85), "Total must be 100%") -> Total must be 100%
A88: 7 | B88: Total number of Dead Animals lifted in a month (Carcass Waste) | D88: Number | E88: Estimate the Average Number of dead animals lifted by the ULB in a month
A89: 7.1 | B89: Small Animals (Cat, Dog, Goat, Pig, etc.)
A90: 7.2 | B90: Big Animals (Cow, Buffalo, Camel, etc.)
A92: 8 | B92: Segregation of Waste
A93: 8.1 | B93: Does the ULB have an estimate of segregated dry and wet waste collected from residential and commercial areas?
A94: If yes, then- | D94: waste collected in TPD
A95: 7.1.1 | B95: Wet Waste (TPD)
A96: 7.1.2 | B96: Dry Waste (TPD)
A97: 8.2 | B97: Does the ULB have an estimate of segregated Dry and Wet Waste Collected from bulk waste generators?
A98: If yes, then- | D98: waste collected in TPD
A99: 7.2.1 | B99: Wet Waste (TPD)
A100: 7.2.2 | B100: Dry Waste (TPD)
A102: 9 | B102: Details of Existing Equipments and Vehicles for MSW Collection and Transportation in your City | D102: Ownership of equipments which are functional (Consider the vehicles procured after year 2013-14 only) | F102: Total Number of functional equipments | G102: No. of functional equipments in use which are procured after year 2013-14 only | H102: No. of functional equipments currently not in use or kept as Standby | I102: Equipments which are procured before 2013 should not be considered
B103: Name of Equipment/Vehicle | C103: Capacity
D104: ULB | E104: Private Agency
A105: Primary Collection | I105: Insert Zero (0) if the ULB doesn't have equipments or vehicles listed here
A106: 9.1 | B106: Hand Cart with 6 Bins for only D2D collection (Capacity in Kgs) | F106: =D106+E106 -> 0 | H106: =F106-G106 -> 0
A107: 9.2 | B107: Tricycle with bins (Capacity in Kgs) | F107: 0 | H107: 0
A108: 9.3 | B108: 3-wheeler auto with tipping hopper (Capacity in MT) | F108: 0 | H108: 0
A109: 9.4 | B109: Mini tipper (4 wheel Mini Truck Container Mounted) (Capacity in MT) | F109: 0 | H109: 0
A110: 9.5 | B110: Mini tipper (Closed Body to collect hotel and restaurant kitchen waste) (Capacity in MT) | F110: 0 | H110: 0
A111: 9.6 | B111: Tractor with Trolley (Capacity in MT) | F111: 0 | H111: 0
A112: Secondary Collection
A113: 9.7 | B113: Community Bins (Containers - Green and Black) | C113: 3 cu.m. | F113: =SUM(D113:E113) -> 0 | H113: =F113-G113 -> 0
C114: 4.5 cu.m. | F114: =SUM(D114:E114) -> 0 | H114: 0
A115: 9.8 | B115: Hand Cart with 6 Bins for only Street Sweeping (Capacity in Kgs) | F115: =D115+E115 -> 0 | H115: 0
A116: 9.9 | B116: Galvanized Trolley (Capacity in Litre) | F116: =D116+E116 -> 0 | H116: 0 | I116: Refuse compactor is required for emptying waste from Galvanized Trolley
F117: =D117+E117 -> 0 | H117: 0
A118: 9.1 | B118: Litter bins in the commercial/market areas (Capacity in litre) | F118: =D118+E118 -> 0 | H118: 0 | I118: Litter bins provided at important streets, markets, public areas, tourist spots, bus and railway station, commercial complexes etc. at a distance ranging from 25m to 250m depending on local condition
A119: Transportation
A120: 9.11 | B120: Open Body Trucks with crane arm for C&D waste collection (Capacity in MT) | F120: =D120+E120 -> 0 | H120: =F120-G120 -> 0
A121: 9.12 | B121: Automated Dead Animals Lifting Vehicle | F121: 0 | H121: 0
A122: 9.13 | B122: Refuse Compactors (Capacity in MT) | F122: 0 | H122: 0
A123: 9.14 | B123: Front End Loader (JCB) | F123: 0 | H123: 0
A124: 9.15 | B124: Single community bin lifter | F124: 0 | H124: 0
A125: 9.16 | B125: Twin community bin lifter | F125: 0 | H125: 0
A126: 9.17 | B126: Tempo Truck | F126: 0 | H126: 0
A127: 9.18 | B127: Mini Compactor (Capacity in MT) | F127: 0 | H127: 0
A129: 10 | B129: Details of Other Vehicle | D129: Number of Equipments Owned By (Consider the vehicles procured after year 2013-14) | F129: Total Number of equipments | G129: No. of equipments in use which are procured after year 2013-14 | H129: No. functional equipments currently not in use (Stand By)
D130: ULB | E130: Private Agency
A131: 10.1 | B131: Skid Steer Machine | F131: =SUM(D131:E131) -> 0 | H131: =F131-G131 -> 0 | I131: It is a multi purpose vehicle which can be used to clean the streets, as a rollar, as an augar for digging soil
A132: 10.2 | B132: Small Excavator | F132: =SUM(D132:E132) -> 0 | H132: =F132-G132 -> 0
A133: 10.3 | B133: Litter Picker (capacity around 2 Tonne) | F133: =SUM(D133:E133) -> 0 | H133: =F133-G133 -> 0
A135: 11 | B135: Street Sweeping Equipment/Kit | D135: Number | E135: No. of Equipments in Use
A137: 11.1 | B137: Long handle broom
A138: 11.2 | B138: Metal Tray (Dust Pan)
A139: 11.3 | B139: Metal Plate
A140: 11.4 | B140: Ghamela
A141: 11.5 | B141: Spades
A142: 11.6 | B142: Tractor/Truck Mounted Road Sweeper Vacuum Machine
A143: 11.7 | B143: Tractor/Truck Mounted Road Broomer Machine
A145: 12 | B145: Health Safety Gears for Sanitation Workers | D145: Number | E145: No. of Safety gears in Use
A147: 12.1 | B147: Uniform (Pair)
A148: 12.2 | B148: Gloves
A149: 12.3 | B149: Gum Boots
A150: 12.4 | B150: Safety Mask
A151: 12.5 | B151: Safety Jacket
A152: 12.6 | B152: Rain Coat
A154: 13 | B154: Details of Human Resource for operation of SWM Equipments | D154: Total number of working staff | H154: Total Number of sanctioned staff
B155: Human Resource | D155: Permanent | E155: Contract (Fixed payment) | F155: Daily labour | G155: Total Number
A156: 13.1 | B156: Chief Sanitary Inspector (CSI) | G156: =SUM(D156:F156) -> 0
A157: 13.2 | B157: Public Health Supervisor (PHS) | G157: 0
A158: 13.3 | B158: Sanitary Inspector (SI) | G158: 0
A159: 13.4 | B159: Sanitary Sub Inspector (SSI) | G159: 0
A160: 13.5 | B160: Safai Karmachari (Sanitation Workers) | G160: 0
A161: 13.6 | B161: No. of Safai Karmachari Deployed for Street Sweeping | G161: 0
A162: 13.7 | B162: Labour | G162: 0
A163: 13.8 | B163: Driver | G163: 0
A165: 14 | B165: Details of solid waste disposal site | D165: Number
A166: 14.1 | B166: Solid waste disposed at
A167: 14.2 | B167: =IF(D166="Select option", "Area", Dropdown!$B$11&'Input sheet'!$D$166&Dropdown!$C$11) -> Area of the (in Acre)
A168: 14.3 | B168: =IF(D166="Select option", "Capacity", Dropdown!$B$12&'Input sheet'!$D$166&Dropdown!$C$12) -> Capacity of the (in MT)
A169: 14.4 | B169: =IF(D166="Select option", "Approx. distance", Dropdown!$B$13&'Input sheet'!$D$166&Dropdown!$C$13) -> Approx. distance of the (in km)
A170: 14.5 | B170: =IF(D166="Select option", "operated and maintained by", D166&Dropdown!B15) -> operated and maintained by
A172: 15 | B172: Details about Transfer Station
A173: 15.1 | B173: Does the ULB have transfer station?
A174: 15.2 | B174: If yes, number of transfer station in the ULB
A177: C. Gap Analysis
A179: Requirement of dustbins for Waste Segregation at Source
A180: S.No. | B180: Total number of properties in the ULB | C180: Requirement of dustbins in year 2017-18
A181: 1 | B181: ='Input sheet'!C36 -> 0 | C181: =B181*2 -> 0
A183: Requirement of vehicles/equipment for Residential Waste Generators
A184: S.No. | B184: Waste generation from residential areas | E184: Proposed Primary Collection From Residential Areas | J184: Door to door collection should be done in the morning
A185: 1 | B185: Waste Generators | C185: Number of HHs | D185: Estimated waste Generation (TPD) | E185: % of HH breakup for Preferred Vehicle for Primary Collection
E186: Hand Cart with 6 Bins | F186: Tricycle with bins | G186: 3-wheeler auto with tipping hopper | H186: Mini Tipper (4 wheel Mini Truck Container Mounted) | I186: Tractor with trolley | J186: Fill proposed % break up of HHs to be covered by preferred vehicles for collection. For eg. Suppose there are 1000 HHs in slum areas and you want to cover 20% HHs by Hand Carts then put 20% in the cell. Total should be 100%
A187: 1.1 | B187: Households in Slum areas | C187: ='Input sheet'!D49 -> 0 | D187: ='Input sheet'!E49 -> 0 | J187: =IF(SUM(E187:I187)=100%," ","Total must be 100%") -> Total must be 100%
A188: 1.1.1 | B188: No. of Trips Required for each vehicle | E188: =IF(E187=0,0,'Decision Making'!$D$3) -> 0 | F188: =IF(F187=0,0,'Decision Making'!$D$3) -> 0 | G188: =IF(G187=0,0,'Decision Making'!$D$3) -> 0 | H188: =IF(H187=0,0,'Decision Making'!$D$3) -> 0 | I188: =IF(I187=0,0,'Decision Making'!$D$3) -> 0
A189: 1.2 | B189: Households in Urban Village (Gamtal) | C189: ='Input sheet'!D50 -> 0 | D189: ='Input sheet'!E50 -> 0 | J189: =IF(D189=0,"",IF(SUM(E189:I189)=100%," ","Total must be 100%")) -> 
A190: 1.2.1 | B190: No. of Trips Required for each vehicle | E190: =IF(E189=0,0,'Decision Making'!$D$3) -> 0 | F190: =IF(F189=0,0,'Decision Making'!$D$3) -> 0 | G190: =IF(G189=0,0,'Decision Making'!$D$3) -> 0 | H190: =IF(H189=0,0,'Decision Making'!$D$3) -> 0 | I190: =IF(I189=0,0,'Decision Making'!$D$3) -> 0
A191: 1.3 | B191: Households in the Areas Other than slums and Urban Village (Gamtal) | C191: ='Input sheet'!D51 -> 0 | D191: ='Input sheet'!E51 -> 0 | J191: =IF(SUM(E191:I191)=100%," ","Total must be 100%") -> Total must be 100%
A192: 1.3.1 | B192: No. of Trips Required for each vehicle | E192: =IF(E191=0,0,'Decision Making'!$D$3) -> 0 | F192: =IF(F191=0,0,'Decision Making'!$D$3) -> 0 | G192: =IF(G191=0,0,'Decision Making'!$D$3) -> 0 | H192: =IF(H191=0,0,'Decision Making'!$D$3) -> 0 | I192: =IF(I191=0,0,'Decision Making'!$D$3) -> 0
A193: 1.4 | B193: Total Waste generated from Residential Generators | C193: =SUM(C187+C189+C191) -> 0 | D193: =SUM(D187+D189+D191) -> 0
B195: Total number of HHs to be served by respective vehicles | E195: =$C$187*E187 -> 0 | F195: =$C$187*F187 -> 0 | G195: =$C$187*G187 -> 0 | H195: =$C$187*H187 -> 0 | I195: =$C$187*I187 -> 0
B196: No. of Vehiles Required (single Trip) | E196: =E195/'Norms and Assumptions'!B2 -> 0 | F196: =F195/'Norms and Assumptions'!B3 -> 0 | G196: =G195/'Norms and Assumptions'!B4 -> 0 | H196: =H195/'Norms and Assumptions'!B5 -> 0 | I196: =I195/'Norms and Assumptions'!B8 -> 0
B197: Total number of vehicles required to cover HHs in Slum Areas | E197: =IF(E188=0,0,(E196/E188)) -> 0 | F197: =IF(F188=0,0,(F196/F188)) -> 0 | G197: =IF(G188=0,0,(G196/G188)) -> 0 | H197: =IF(H188=0,0,(H196/H188)) -> 0 | I197: =IF(I188=0,0,(I196/I188)) -> 0
B199: Total number of HHs to be served by respective vehicles | E199: =$C$189*E189 -> 0 | F199: =$C$189*F189 -> 0 | G199: =$C$189*G189 -> 0 | H199: =$C$189*H189 -> 0 | I199: =$C$189*I189 -> 0
B200: No. of Vehiles Required (single Trip) | E200: =E199/'Norms and Assumptions'!B2 -> 0 | F200: =F199/'Norms and Assumptions'!B3 -> 0 | G200: =G199/'Norms and Assumptions'!B4 -> 0 | H200: =H199/'Norms and Assumptions'!B5 -> 0 | I200: =I199/'Norms and Assumptions'!B8 -> 0
B201: Total number of vehicles required to cover HHs in Urban Village (Gamtal) | E201: =IF(E190=0, 0, (E200/E190)) -> 0 | F201: =IF(F190=0, 0, (F200/F190)) -> 0 | G201: =IF(G190=0, 0, (G200/G190)) -> 0 | H201: =IF(H190=0, 0, (H200/H190)) -> 0 | I201: =IF(I190=0, 0, (I200/I190)) -> 0
B203: Total number of HHs to be served by respective vehicles | E203: =$C$191*E191 -> 0 | F203: =$C$191*F191 -> 0 | G203: =$C$191*G191 -> 0 | H203: =$C$191*H191 -> 0 | I203: =$C$191*I191 -> 0
B204: No. of Vehiles Required (single Trip) | E204: =E203/'Norms and Assumptions'!B2 -> 0 | F204: =F203/'Norms and Assumptions'!B3 -> 0 | G204: =G203/'Norms and Assumptions'!B4 -> 0 | H204: =H203/'Norms and Assumptions'!B5 -> 0 | I204: =I203/'Norms and Assumptions'!B8 -> 0
B205: Total number of vehicles required to cover HHs in Slum Areas | E205: =IF(E192=0,0,(E204/E192)) -> 0 | F205: =IF(F192=0,0,(F204/F192)) -> 0 | G205: =IF(G192=0,0,(G204/G192)) -> 0 | H205: =IF(H192=0,0,(H204/H192)) -> 0 | I205: =IF(I192=0,0,(I204/I192)) -> 0
B207: Total Number of Vehicles Required | E207: =ROUND((E197+E201+E205),0) -> 0 | F207: =ROUND((F197+F201+F205),0) -> 0 | G207: =ROUND((G197+G201+G205),0) -> 0 | H207: =ROUND((H197+H201+H205),0) -> 0 | I207: =ROUND((I197+I201+I205),0) -> 0
A209: 1.5 | B209: Total number of vehicles required to collect the waste generated from Residential Generators | E209: =E207 -> 0 | F209: =F207 -> 0 | G209: =G207 -> 0 | H209: =H207 -> 0 | I209: =I207 -> 0
A211: 2 | B211: Requirement of vehicles for Commercial Waste Generators
A212: 2.1 | B212: Total waste generated from commercial areas (in MT) | D212: ='Input sheet'!E72 -> 0
A213: 2a | B213: Type of Vehicle | C213: Hand Cart with 6 Bins | D213: Tricycle with bins | E213: 3-wheeler auto with tipping hopper | F213: Mini Tipper (4 wheel Mini Truck Container Mounted) | G213: Tractor with trolley | H213: Mini Compactors
A214: 2a.1 | B214: % of waste to be collected by preferred vehicle for primary collection | I214: =IF(SUM(C214:H214)=100%," ","Total must be 100%") -> Total must be 100%
A215: 2a.2 | B215: No. of Trips Required for each vehicle | C215: =IF(C214=0,0,'Decision Making'!$D$3) -> 0 | D215: =IF(D214=0,0,'Decision Making'!$D$3) -> 0 | E215: =IF(E214=0,0,'Decision Making'!$D$3) -> 0 | F215: =IF(F214=0,0,'Decision Making'!$D$3) -> 0 | G215: =IF(G214=0,0,'Decision Making'!$D$3) -> 0 | H215: =IF(H214=0,0,'Decision Making'!$D$3) -> 0
A216: 2a.3 | B216: Waste collected by respective vehicles | C216: =$D$212*C214 -> 0 | D216: 0 | E216: 0 | F216: 0 | G216: 0 | H216: 0
A217: 2a.4 | B217: No. of Vehiles Required (single Trip) | C217: =ROUNDUP((C216/'Norms and Assumptions'!E2),0) -> 0 | D217: =ROUNDUP((D216/'Norms and Assumptions'!E3),0) -> 0 | E217: =ROUNDUP((E216/'Norms and Assumptions'!E4),0) -> 0 | F217: =ROUNDUP((F216/'Norms and Assumptions'!E5),0) -> 0 | G217: =ROUNDUP((G216/'Norms and Assumptions'!E8),0) -> 0 | H217: =ROUNDUP((H216/'Norms and Assumptions'!E13),0) -> 0
A218: 2a.3 | B218: Total number of vehicles required to collect waste from commecrial areas | C218: =ROUNDUP(IF(C214=0,0,(C217/C215)),0) -> 0 | D218: 0 | E218: 0 | F218: 0 | G218: 0 | H218: 0
A220: 2b | B220: Proposed mode of vehicle procurement for D2D collection from Residential and Commercial Areas
A221: Insert the percentage of vehicles to be procured by
A222: 2b.1 | B222: Private Agency
A223: 2b.2 | B223: ULB
A224: 2b.3 | B224: Total | C224: =IF(SUM(C222:C223)=100%,SUM(C222:C223),"Total must be to 100%") -> Total must be to 100%
A226: 3 | B226: Details of Secondary waste collection and transportation to dump/landfill/treatment site
A227: Sr. No. | B227: Bins / Vehicles | C227: Additional requirement of bins and vehicles to be procured
A228: 3.1 | B228: Community Bins with capacity of 3 cu.mt. | D228: First list out the locations where community bins are required to be placed and which capacity of bin is needed for the location. While inserting number of bins, do not consider the number of existing bins that ULB has. Only enter the additional number of bins that are required.
A229: 3.2 | B229: Community Bins with capacity of 4.5 cu.mt.
A230: 3.3 | B230: Galvanized Trolley with capacity of 660 L
A231: 3.4 | B231: Galvanized Trolley with capacity of 1100 L
A232: 3.5 | B232: Single community bin lifter | C232: =ROUND(IF(AND('Input sheet'!F124=0,'Input sheet'!F125>0),0, IF(AND('Input sheet'!F124>0,'Input sheet'!F125=0), ('Input sheet'!G113+'Input sheet'!G114+'Input sheet'!C228+'Input sheet'!C229)/'Norms and Assumptions'!B92,IF(AND('Input sheet'!F124>0,'Input sheet'!F125>0), (('Input sheet'!G113+'Input sheet'!G114+'Input sheet'!C228+'Input sheet'!C229)*0.5)/'Norms and Assumptions'!B92))),0) -> 0
A233: 3.6 | B233: Twin community bin lifter | C233: =ROUND(IF(AND('Input sheet'!F124>0,'Input sheet'!F125=0),0, IF(AND('Input sheet'!F124=0,'Input sheet'!F125>0), ('Input sheet'!G113+'Input sheet'!G114+'Input sheet'!C228+'Input sheet'!C229)/'Norms and Assumptions'!B93,IF(AND('Input sheet'!F124>0,'Input sheet'!F125>0), (('Input sheet'!G113+'Input sheet'!G114+'Input sheet'!C228+'Input sheet'!C229)*0.5)/'Norms and Assumptions'!B93))),0) -> 0
A234: 3.7 | B234: Mini Compactor
A235: 3.8 | B235: Refuse Compactor | C235: =ROUNDUP((((C230+'Input sheet'!F116)*'Norms and Assumptions'!E9)+(('Input sheet'!C231+'Input sheet'!F117)*'Norms and Assumptions'!E10))/('Norms and Assumptions'!E14*'Norms and Assumptions'!B96),0) -> 0
A236: 3.9 | B236: Front End Loader (JCB) | C236: =IF('Input sheet'!D170=Dropdown!D3,0,IF('Input sheet'!C30="",0,IF('Input sheet'!C30<=1000000,1,""))) -> 0
A237: 3.1 | B237: Litter bins in the the commercial/market areas
A239: 4 | B239: Requirement of vehicles/equipment for Street Sweeping
A240: 4.1 | B240: Number of safai karmachari required for street sweeping (As per beat length) | D240: =IF('Input sheet'!C42="","Please enter total length of roads with divider in City Profile Section in cell C42",ROUNDUP((((('Input sheet'!C41-'Input sheet'!C42)*1000)/'Decision Making'!D5)+(('Input sheet'!C42*2*1000)/'Decision Making'!D5)),0)) -> Please enter total length of roads with divider in City Profile Section in cell C42
A241: 4.2 | B241: Requirement of Hand Cart for Street Sweeping | D241: =IF(D240="Please enter total length of roads with divider in City Profile Section in cell C42",0,ROUNDUP(D240,0)) -> 0
... 83 more rows

Sheet Budget Summary
A1: Summary of Budget
B8: Demographic Profile of the ULB | C8: Details
B9: ='Input sheet'!B17 -> Name of the ULB | C9: =IF('Input sheet'!C17="","",'Input sheet'!C17) -> 
B10: ='Input sheet'!B19 -> Area of the ULB in sq.km. | C10: =IF('Input sheet'!C19="","",'Input sheet'!C19) -> 
B11: ='Input sheet'!B21 -> Number of Election Wards | C11: =IF('Input sheet'!C21="","",'Input sheet'!C21) -> 
B12: ='Input sheet'!B30 -> Total Population of the ULB (Current year) (As per latest survey conducted after census 2011 or based on the populaion projection) | C12: =IF('Input sheet'!C30="","",'Input sheet'!C30) -> 
B13: ='Input sheet'!B31 -> Total Number of Households (Current Year) | C13: =IF('Input sheet'!C31="","",'Input sheet'!C31) -> 
B14: ='Input sheet'!B33 -> Number of Slum Settlements/Pockets (As per latest slum survey conducted after census 2011, SFCPoA etc.) | C14: =IF('Input sheet'!C33="","",'Input sheet'!C33) -> 
B15: ='Input sheet'!B35 -> Slum Population (As per latest slum survey conducted after census 2011, SFCPoA etc.) | C15: =IF('Input sheet'!C35="","",'Input sheet'!C35) -> 
B16: ='Input sheet'!B34 -> Number of Slum Households (As per latest slum survey conducted after census 2011, SFCPoA etc.) | C16: =IF('Input sheet'!C34="","",'Input sheet'!C34) -> 
B17: Total Watse Generation in TPD (Current year) | C17: =IF('Input sheet'!E75="","",'Input sheet'!E75) -> 0
B19: Total Capital Cost | C19: Cost in Rs.
B20: 2017-18 | C20: =D54+D73+D81+D87+D93+D102+D110+D119+D122 -> 0
B21: 2018-19 | C21: =E54+E73+E81+E87+E93+E102+E110+E119 -> 0
B22: 2019-20 | C22: =F54+F73+F81+F87+F93+F102+F110+F119 -> 0
B23: Total | C23: =SUM(C20:C22) -> 0
B25: Total Operation and Maintenance Cost | C25: Cost in Rs.
B26: 2017-18 | C26: =C149+C176 -> 0
B27: 2018-19 | C27: =D149+D176 -> 0
B28: 2019-20 | C28: =E149+E176 -> 0
B29: Total | C29: =SUM(C26:C28) -> 0
B31: Break-up of Capex based on percentage of vehicles that ULB wants to be procured by the Private Agency | C31: ULB Share | D31: Private Agency Share
B32: D2D collection from residential and commercial areas | C32: =D56 -> 0 | D32: =D55 -> 0
B33: Secondary waste collection | C33: =D75 -> 0 | D33: =D74 -> 0
B34: Waste collection from bulk generators | C34: =D83 -> 0 | D34: =D82 -> 0
B35: C&D waste collection | C35: =D89 -> 0 | D35: =D88 -> 0
B36: Carcass waste collection | C36: =D95 -> 0 | D36: =D94 -> 0
B37: Procurement of other vehicles | C37: =SUM(D102:F102) -> 0 | D37: -
B38: Equipments of street sweeping | C38: =SUM(D110:F110) -> 0 | D38: -
B39: Health safety gears | C39: =SUM(D119:F119) -> 0 | D39: -
B40: Household dustbins for source segregation | C40: =D122 -> 0 | D40: -
B41: Total Cost | C41: =SUM(C32:C40) -> 0 | D41: =SUM(D32:D40) -> 0
B43: Total amount required for procurement of Vehicles/Equipments and its O&M | C43: =C23+C29 -> 0
A45: Details of CAPEX for Procurement of Equipments and Vehicles
A46: 1 | B46: Requirement of vehicles for D2D collection from Residential and Commercial Areas
A47: Sr. No. | B47: Name of Equipment | C47: Net Requirement of Equipments for 2017-18 | D47: Capex for Year 2017-18 (Amount in Rs.) | E47: Capex for Year 2018-19 (Amount in Rs.) | F47: Capex for Year 2019-20 (Amount in Rs.)
A48: 1.1 | B48: ='Input sheet'!B298 -> Hand Cart with 6 Bins for only D2D collection from Residential and Commercial areas | C48: ='Input sheet'!E298 -> 0 | D48: =IF(C48=0,0,(C48*'Norms and Assumptions'!$M$2)) -> 0 | E48: 0 | F48: 0
A49: 1.2 | B49: ='Input sheet'!B300 -> Tricycle with bins | C49: ='Input sheet'!E300 -> 0 | D49: =IF(C49=0,0,(C49*'Norms and Assumptions'!M3)) -> 0 | E49: 0 | F49: 0
A50: 1.3 | B50: ='Input sheet'!B301 -> 3-wheeler auto with tipping hopper | C50: ='Input sheet'!E301 -> 0 | D50: =IF(C50=0,0,(C50*'Norms and Assumptions'!M4)) -> 0 | E50: 0 | F50: 0
A51: 1.4 | B51: ='Input sheet'!B302 -> Mini tipper (4 wheel Mini Truck Container Mounted) | C51: ='Input sheet'!E302 -> 0 | D51: =IF(C51=0,0,(C51*'Norms and Assumptions'!M5)) -> 0 | E51: 0 | F51: 0
A52: 1.5 | B52: ='Input sheet'!B304 -> Tractor with trolley | C52: ='Input sheet'!E304 -> 0 | D52: =IF(C52=0,0,(C52*'Norms and Assumptions'!M7)) -> 0 | E52: 0 | F52: 0
A53: 1.6 | B53: Mini Compactor | C53: ='Input sheet'!E307 -> 0 | D53: =IF(C53=0,0,(C53*'Norms and Assumptions'!M10)) -> 0 | E53: 0 | F53: 0
A54: Total | C54: =SUM(C48:C53) -> 0 | D54: =SUM(D48:D53) -> 0 | E54: =SUM(E48:E53) -> 0 | F54: 0
A55: Private Agency Share | C55: ='Input sheet'!C222 -> 0 | D55: =SUM($D$54:$F$54)*C55 -> 0
A56: ULB Share | C56: ='Input sheet'!C223 -> 0 | D56: =SUM(D54:F54)-D55 -> 0
A58: 2 | B58: Requirement of vehicles/equipments for secondary waste collection
A59: Sr. No. | B59: Name of Equipment | C59: Net Requirement of Equipment for 2017-18 | D59: Capex for Year 2017-18 (Amount in Rs.) | E59: Capex for Year 2018-19 (Amount in Rs.) | F59: Capex for Year 2019-20 (Amount in Rs.)
A60: 2.1 | B60: ='Input sheet'!B299 -> Hand Cart with 6 Bins for only street sweeping | C60: ='Input sheet'!E299 -> 0 | D60: =IF(C60=0,0,(C60*'Norms and Assumptions'!$M$2)) -> 0 | E60: 0 | F60: 0
A61: 2.2 | B61: ='Input sheet'!B309 -> Single community bin lifter | C61: ='Input sheet'!E309 -> 0 | D61: =IF(C61=0,0,(C61*'Norms and Assumptions'!M14)) -> 0 | E61: 0 | F61: 0
A62: 2.3 | B62: ='Input sheet'!B310 -> Twin community bin lifter | C62: ='Input sheet'!E310 -> 0 | D62: =IF(C62=0,0,(C62*'Norms and Assumptions'!M15)) -> 0 | E62: 0 | F62: 0
A63: 2.4 | B63: ='Input sheet'!B313 -> Mini Compactor for secondary waste collection | C63: ='Input sheet'!E313 -> 0 | D63: =IF(C63=0,0,(C63*'Norms and Assumptions'!M10)) -> 0 | E63: 0 | F63: 0
A64: 2.5 | B64: ='Input sheet'!B308 -> Refuse Compactor | C64: ='Input sheet'!E308 -> 0 | D64: =IF(C64=0,0,(C64*'Norms and Assumptions'!M11)) -> 0 | E64: 0 | F64: 0
A65: 2.6 | B65: ='Input sheet'!B312 -> Front End Loader (JCB) | C65: ='Input sheet'!E312 -> 0 | D65: =IF(C65=0,0,(C65*'Norms and Assumptions'!M13)) -> 0 | E65: 0 | F65: 0
A66: 2.7 | B66: ='Input sheet'!B314 -> Tractor Mounted Road Sweeper Vacuum Machine | C66: ='Input sheet'!E314 -> 0 | D66: =IF(C66=0,0,(C66*'Norms and Assumptions'!M16)) -> 0 | E66: 0 | F66: 0
A67: 2.8 | B67: ='Input sheet'!B315 -> Tractor Mounted Road Broomer Machine | C67: ='Input sheet'!E315 -> 0 | D67: =IF(C67=0,0,(C67*'Norms and Assumptions'!M17)) -> 0 | E67: 0 | F67: 0
A68: 2.9 | B68: ='Input sheet'!B319 -> Community Bins with capacity of 3 cu.mt. | C68: ='Input sheet'!E319 -> 0 | D68: =IF(C68=0,0,(C68*'Norms and Assumptions'!M21)) -> 0 | E68: =($C$68+'Input sheet'!$F$113)*'Norms and Assumptions'!$M$21 -> 0 | F68: =($C$68+'Input sheet'!$F$113)*'Norms and Assumptions'!$M$21 -> 0
A69: 2.1 | B69: ='Input sheet'!B320 -> Community Bins with capacity of 4.5 cu.mt. | C69: ='Input sheet'!E320 -> 0 | D69: =IF(C69=0,0,(C69*'Norms and Assumptions'!M22)) -> 0 | E69: =($C$69+'Input sheet'!$F$114)*'Norms and Assumptions'!$M$22 -> 0 | F69: =($C$69+'Input sheet'!$F$114)*'Norms and Assumptions'!$M$22 -> 0
A70: 2.11 | B70: ='Input sheet'!B321 -> Galvanized Trolley with capacity of 660 L | C70: ='Input sheet'!E321 -> 0 | D70: =IF(C70=0,0,(C70*'Norms and Assumptions'!M23)) -> 0 | E70: 0 | F70: 0
A71: 2.12 | B71: ='Input sheet'!B322 -> Galvanized Trolley with capacity of 1100 L | C71: ='Input sheet'!E322 -> 0 | D71: =IF(C71=0,0,(C71*'Norms and Assumptions'!M24)) -> 0 | E71: 0 | F71: 0
A72: 2.13 | B72: ='Input sheet'!B323 -> Litter bins in the the commercial/market areas (Capacity in litre) | C72: ='Input sheet'!E323 -> 0 | D72: =IF(C72=0,0,(C72*'Norms and Assumptions'!M25)) -> 0 | E72: =($C$72+'Input sheet'!$F$118)*'Norms and Assumptions'!$M$25 -> 0 | F72: =($C$72+'Input sheet'!$F$118)*'Norms and Assumptions'!$M$25 -> 0
A73: Total | C73: =SUM(C60:C72) -> 0 | D73: =SUM(D60:D72) -> 0 | E73: =SUM(E60:E72) -> 0 | F73: =SUM(F60:F72) -> 0
A74: Private Agency Share | C74: ='Input sheet'!C255 -> 0 | D74: =SUM(D60:D67)*C74 -> 0
A75: ULB Share | C75: ='Input sheet'!C256 -> 0 | D75: =SUM(D73:F73)-D74 -> 0
A77: 3 | B77: Requirement of vehicles/equipments for waste collection from Bulk Generators
A78: Sr. No. | B78: Name of Equipment | C78: Net Requirement of Equipments | D78: Capex for Year 2017-18 (Amount in Rs.) | E78: Capex for Year 2018-19 (Amount in Rs.) | F78: Capex for Year 2019-20 (Amount in Rs.)
A79: 3.1 | B79: ='Input sheet'!B303 -> Mini tipper (Closed Body to collect hotel and restaurant kitchen waste) | C79: ='Input sheet'!E303 -> 0 | D79: =IF(C79=0,0,(C79*'Norms and Assumptions'!M6)) -> 0 | E79: 0 | F79: 0
A80: 3.2 | B80: ='Input sheet'!B305 -> Tempo Truck | C80: ='Input sheet'!E305 -> 0 | D80: =IF(C80=0,0,(C80*'Norms and Assumptions'!M8)) -> 0 | E80: 0 | F80: 0
A81: Total | C81: =SUM(C79:C80) -> 0 | D81: =SUM(D79:D80) -> 0 | E81: =SUM(E79:E80) -> 0 | F81: =SUM(F79:F80) -> 0
A82: Private Agency Share | C82: ='Input sheet'!C267 -> 0 | D82: =SUM(D81:F81)*C82 -> 0
A83: ULB Share | C83: ='Input sheet'!C268 -> 0 | D83: =SUM(D81:F81)-D82 -> 0
A85: 4 | B85: Requirement of vehicles/equipments for C&D waste collection
A86: Sr. No. | B86: Name of Equipment | C86: Net Requirement of Equipments | D86: Capex for Year 2017-18 (Amount in Rs.) | E86: Capex for Year 2018-19 (Amount in Rs.) | F86: Capex for Year 2019-20 (Amount in Rs.)
A87: 4.1 | B87: ='Input sheet'!B306 -> Open Body Truck with crane arm for C&D waste | C87: ='Input sheet'!E306 -> 0 | D87: =IF(C87=0,0,(C87*'Norms and Assumptions'!M9)) -> 0 | E87: 0 | F87: 0
A88: Private Agency Share | C88: ='Input sheet'!C278 -> 0 | D88: =SUM(D87:F87)*C88 -> 0
A89: ULB Share | C89: ='Input sheet'!C279 -> 0 | D89: =SUM(D87:F87)-D88 -> 0
A91: 5 | B91: Requirement of vehicles/equipments for Carcass waste collection
A92: Sr. No. | B92: Name of Equipment | C92: Net Requirement of Equipments | D92: Capex for Year 2017-18 (Amount in Rs.) | E92: Capex for Year 2018-19 (Amount in Rs.) | F92: Capex for Year 2019-20 (Amount in Rs.)
A93: 5.1 | B93: ='Input sheet'!B311 -> Automated dead animal lifting vehicle | C93: ='Input sheet'!E311 -> 0 | D93: =IF(C93=0,0,(C93*'Norms and Assumptions'!M12)) -> 0 | E93: 0 | F93: 0
A94: Private Agency Share | C94: ='Input sheet'!C292 -> 0 | D94: =SUM(D93:F93)*C94 -> 0
A95: ULB Share | C95: ='Input sheet'!C293 -> 0 | D95: =SUM(D93:F93)-D94 -> 0
A97: 6 | B97: Requirement of other vehicles/equipments
A98: Sr. No. | B98: Name of Equipment | C98: Net Requirement of Equipments | D98: Capex for Year 2017-18 (Amount in Rs.) | E98: Capex for Year 2018-19 (Amount in Rs.) | F98: Capex for Year 2019-20 (Amount in Rs.)
A99: 6.1 | B99: ='Input sheet'!B316 -> Skid Steer Machine | C99: ='Input sheet'!E316 -> 0 | D99: =IF(C99=0,0,(C99*'Norms and Assumptions'!M18)) -> 0 | E99: 0 | F99: 0
A100: 6.2 | B100: ='Input sheet'!B317 -> Small Excavator | C100: ='Input sheet'!E317 -> 0 | D100: =IF(C100=0,0,(C100*'Norms and Assumptions'!M19)) -> 0 | E100: 0 | F100: 0
A101: 6.3 | B101: ='Input sheet'!B318 -> Litter Picker (capacity around 2 Tonne) | C101: ='Input sheet'!E318 -> 0 | D101: =IF(C101=0,0,(C101*'Norms and Assumptions'!M20)) -> 0 | E101: 0 | F101: 0
A102: Total | C102: =SUM(C99:C101) -> 0 | D102: =SUM(D99:D101) -> 0 | E102: =SUM(E99:E101) -> 0 | F102: 0
A104: 7 | B104: Equipment for Street Sweeping | C104: Net Requirement of Equipments | D104: Capex for Year 2017-18 (Amount in Rs.) | E104: Capex for Year 2018-19 (Amount in Rs.) | F104: Capex for Year 2019-20 (Amount in Rs.)
A105: 7.1 | B105: Long handle broom | C105: ='Input sheet'!F247 -> 0 | D105: =IF(C105=0,0,C105*'Norms and Assumptions'!$M$29) -> 0 | E105: =IF('Input sheet'!D247=0,0,'Input sheet'!D247*'Norms and Assumptions'!M29) -> 0 | F105: =IF('Input sheet'!$D$247=0,0,'Input sheet'!$D$247*'Norms and Assumptions'!$M$29) -> 0
A106: 7.2 | B106: Metal Tray (Dust Pan) | C106: ='Input sheet'!F248 -> 0 | D106: =IF(C106=0,0,C106*'Norms and Assumptions'!$M$30) -> 0 | E106: =IF('Input sheet'!$D$248=0,0,'Input sheet'!$D$248*'Norms and Assumptions'!$M$30) -> 0 | F106: =IF('Input sheet'!$D$248=0,0,'Input sheet'!$D$248*'Norms and Assumptions'!$M$30) -> 0
A107: 7.3 | B107: Metal Plate | C107: ='Input sheet'!F249 -> 0 | D107: =IF(C107=0,0,C107*'Norms and Assumptions'!$M$31) -> 0 | E107: =IF('Input sheet'!$D$249=0,0,'Input sheet'!$D$249*'Norms and Assumptions'!$M$31) -> 0 | F107: =IF('Input sheet'!$D$249=0,0,'Input sheet'!$D$249*'Norms and Assumptions'!$M$31) -> 0
A108: 7.4 | B108: Ghamela | C108: ='Input sheet'!F250 -> 0 | D108: =IF(C108=0,0,C108*'Norms and Assumptions'!$M$32) -> 0 | E108: =IF('Input sheet'!$D$250=0,0,'Input sheet'!$D$250*'Norms and Assumptions'!$M$32) -> 0 | F108: =IF('Input sheet'!$D$250=0,0,'Input sheet'!$D$250*'Norms and Assumptions'!$M$32) -> 0
A109: 7.5 | B109: Spades | C109: ='Input sheet'!F251 -> 0 | D109: =IF(C109=0,0,C109*'Norms and Assumptions'!$M$33) -> 0 | E109: =IF('Input sheet'!$D$251=0,0,'Input sheet'!$D$251*'Norms and Assumptions'!$M$33) -> 0 | F109: =IF('Input sheet'!$D$251=0,0,'Input sheet'!$D$251*'Norms and Assumptions'!$M$33) -> 0
A110: Total | C110: =SUM(C105:C109) -> 0 | D110: =SUM(D105:D109) -> 0 | E110: 0 | F110: 0
A112: 8 | B112: Health Safety Gears for Sanitation Workers | C112: Net Requirement of Equipments | D112: Capex for Year 2017-18 (Amount in Rs.) | E112: Capex for Year 2018-19 (Amount in Rs.) | F112: Capex for Year 2019-20 (Amount in Rs.)
A113: 8.1 | B113: Uniform | C113: ='Input sheet'!F326 -> 0 | D113: =IF(C113=0,0,C113*'Norms and Assumptions'!M37) -> 0 | E113: =IF('Input sheet'!$D$326=0,0,'Input sheet'!$D$326*'Norms and Assumptions'!$M$37) -> 0 | F113: =IF('Input sheet'!$D$326=0,0,'Input sheet'!$D$326*'Norms and Assumptions'!$M$37) -> 0
A114: 8.2 | B114: Gloves | C114: ='Input sheet'!F327 -> 0 | D114: =IF(C114=0,0,C114*'Norms and Assumptions'!M38) -> 0 | E114: =IF('Input sheet'!$D$327=0,0,'Input sheet'!$D$327*'Norms and Assumptions'!$M$38) -> 0 | F114: =IF('Input sheet'!$D$327=0,0,'Input sheet'!$D$327*'Norms and Assumptions'!$M$38) -> 0
A115: 8.3 | B115: Gum Boots | C115: ='Input sheet'!F328 -> 0 | D115: =IF(C115=0,0,C115*'Norms and Assumptions'!M39) -> 0 | E115: =IF('Input sheet'!$D$328=0,0,'Input sheet'!$D$328*'Norms and Assumptions'!$M$39) -> 0 | F115: =IF('Input sheet'!$D$328=0,0,'Input sheet'!$D$328*'Norms and Assumptions'!$M$39) -> 0
A116: 8.4 | B116: Safety Mask | C116: ='Input sheet'!F329 -> 0 | D116: =IF(C116=0,0,C116*'Norms and Assumptions'!M40) -> 0 | E116: =IF('Input sheet'!$D$329=0,0,'Input sheet'!$D$329*'Norms and Assumptions'!$M$40) -> 0 | F116: =IF('Input sheet'!$D$329=0,0,'Input sheet'!$D$329*'Norms and Assumptions'!$M$40) -> 0
A117: 8.5 | B117: Safety Jacket | C117: ='Input sheet'!F330 -> 0 | D117: =IF(C117=0,0,C117*'Norms and Assumptions'!M41) -> 0 | E117: =IF('Input sheet'!$D$330=0,0,'Input sheet'!$D$330*'Norms and Assumptions'!$M$41) -> 0 | F117: =IF('Input sheet'!$D$330=0,0,'Input sheet'!$D$330*'Norms and Assumptions'!$M$41) -> 0
A118: 8.6 | B118: Rain Coat | C118: ='Input sheet'!F331 -> 0 | D118: =IF(C118=0,0,C118*'Norms and Assumptions'!M42) -> 0 | E118: =IF('Input sheet'!$D$331=0,0,'Input sheet'!$D$331*'Norms and Assumptions'!$M$42) -> 0 | F118: =IF('Input sheet'!$D$331=0,0,'Input sheet'!$D$331*'Norms and Assumptions'!$M$42) -> 0
A119: Total | C119: =SUM(C113:C118) -> 0 | D119: =SUM(D113:D118) -> 0 | E119: 0 | F119: 0
A121: 9 | B121: Requirement of Household Bins for Source Segregation | C121: No. of Bins Required | D121: Total Cost (Amount in Rs.)
A122: 9.1 | B122: Total number of household bins required for segregation at source | C122: ='Input sheet'!C181 -> 0 | D122: =IFERROR(C122*'Norms and Assumptions'!M44,0) -> 0
A124: Total capex for year 2017-20 | C124: =SUM(C41:D41) -> 0
A127: Details of Operation and Maintenance (O&M) Cost for Equipments and Vehicles
A128: Operation cost (Salary of driver and helper + Fuel cost)
A129: 1 | B129: Name of Equipment | C129: Opex for Year 2017-18 (Amount in Rs.) | D129: Opex for Year 2018-19 (Amount in Rs.) | E129: Opex for Year 2019-20 (Amount in Rs.)
A130: 1.1 | B130: Hand Cart with 6 Bins | C130: =('Input sheet'!G106+'Input sheet'!G115)*'Norms and Assumptions'!O2*'Norms and Assumptions'!$B$99 -> 0 | D130: =('Input sheet'!$G$106+'Input sheet'!$G$115+$C$48+$C$60)*'Norms and Assumptions'!$O$2*'Norms and Assumptions'!$B$99 -> 0 | E130: =D130 -> 0
A131: 1.2 | B131: =B49 -> Tricycle with bins | C131: =('Input sheet'!G107*'Norms and Assumptions'!O3)*'Norms and Assumptions'!$B$99 -> 0 | D131: =('Input sheet'!$G$107+$C$49)*'Norms and Assumptions'!$O$3*'Norms and Assumptions'!$B$99 -> 0 | E131: =D131 -> 0
A132: 1.3 | B132: =B50 -> 3-wheeler auto with tipping hopper | C132: =('Input sheet'!$G$108*'Norms and Assumptions'!$O$4*'Norms and Assumptions'!$B$99)+('Input sheet'!$G$108*'Norms and Assumptions'!$P$4*'Norms and Assumptions'!$B$100)+('Input sheet'!$G$108*'Norms and Assumptions'!$B$104) -> 0 | D132: =(('Input sheet'!$G$108+$C$50)*'Norms and Assumptions'!$O$4*'Norms and Assumptions'!$B$99)+(('Input sheet'!$G$108+$C$50)*'Norms and Assumptions'!$P$4*'Norms and Assumptions'!$B$100)+(('Input sheet'!$G$108+$C$50)*'Norms and Assumptions'!$B$104) -> 0 | E132: 0
A133: 1.4 | B133: =B51 -> Mini tipper (4 wheel Mini Truck Container Mounted) | C133: =('Input sheet'!G109*'Norms and Assumptions'!O5*'Norms and Assumptions'!$B$99)+('Input sheet'!G109*'Norms and Assumptions'!P5*'Norms and Assumptions'!$B$100)+('Input sheet'!G109*'Norms and Assumptions'!$B$104) -> 0 | D133: =(('Input sheet'!G109+C51)*'Norms and Assumptions'!O5*'Norms and Assumptions'!$B$99)+(('Input sheet'!G109+C51)*'Norms and Assumptions'!P5*'Norms and Assumptions'!$B$100)+(('Input sheet'!G109+C51)*'Norms and Assumptions'!$B$104) -> 0 | E133: 0
A134: 1.5 | B134: =B79 -> Mini tipper (Closed Body to collect hotel and restaurant kitchen waste) | C134: =('Input sheet'!G110*'Norms and Assumptions'!O6*'Norms and Assumptions'!$B$99)+('Input sheet'!G110*'Norms and Assumptions'!P6*'Norms and Assumptions'!$B$100)+('Input sheet'!G110*'Norms and Assumptions'!$B$104) -> 0 | D134: =(('Input sheet'!G110+C79)*'Norms and Assumptions'!O6*'Norms and Assumptions'!$B$99)+(('Input sheet'!G110+C79)*'Norms and Assumptions'!P6*'Norms and Assumptions'!$B$100)+(('Input sheet'!G110+C79)*'Norms and Assumptions'!$B$104) -> 0 | E134: 0
A135: 1.6 | B135: =B52 -> Tractor with trolley | C135: =('Input sheet'!G111*'Norms and Assumptions'!O7*'Norms and Assumptions'!$B$99)+('Input sheet'!G111*'Norms and Assumptions'!P7*'Norms and Assumptions'!$B$100)+('Input sheet'!G111*'Norms and Assumptions'!$B$104) -> 0 | D135: =(('Input sheet'!G111+C52)*'Norms and Assumptions'!O7*'Norms and Assumptions'!$B$99)+(('Input sheet'!G111+C52)*'Norms and Assumptions'!P7*'Norms and Assumptions'!$B$100)+(('Input sheet'!G111+C52)*'Norms and Assumptions'!$B$104) -> 0 | E135: 0
A136: 1.7 | B136: =B80 -> Tempo Truck | C136: =('Input sheet'!G126*'Norms and Assumptions'!O8*'Norms and Assumptions'!$B$99)+('Input sheet'!G126*'Norms and Assumptions'!P8*'Norms and Assumptions'!$B$100)+('Input sheet'!G126*'Norms and Assumptions'!$B$104) -> 0 | D136: =(('Input sheet'!G126+C80)*'Norms and Assumptions'!O8*'Norms and Assumptions'!$B$99)+(('Input sheet'!G126+C80)*'Norms and Assumptions'!P8*'Norms and Assumptions'!$B$100)+(('Input sheet'!G126+C80)*'Norms and Assumptions'!$B$104) -> 0 | E136: =D136 -> 0
A137: 1.8 | B137: =B87 -> Open Body Truck with crane arm for C&D waste | C137: =('Input sheet'!G120*'Norms and Assumptions'!O9*'Norms and Assumptions'!$B$99)+('Input sheet'!G120*'Norms and Assumptions'!P9*'Norms and Assumptions'!$B$100)+('Input sheet'!G120*'Norms and Assumptions'!$B$104) -> 0 | D137: =(('Input sheet'!G120+C87)*'Norms and Assumptions'!O9*'Norms and Assumptions'!$B$99)+(('Input sheet'!G120+C87)*'Norms and Assumptions'!P9*'Norms and Assumptions'!$B$100)+(('Input sheet'!G120+C87)*'Norms and Assumptions'!$B$104) -> 0 | E137: 0
A138: 1.9 | B138: =B63 -> Mini Compactor for secondary waste collection | C138: =('Input sheet'!G127*'Norms and Assumptions'!O10*'Norms and Assumptions'!$B$99)+('Input sheet'!G127*'Norms and Assumptions'!P10*'Norms and Assumptions'!$B$100)+('Input sheet'!G127*'Norms and Assumptions'!$B$104) -> 0 | D138: =(('Input sheet'!G127+C63)*'Norms and Assumptions'!O10*'Norms and Assumptions'!$B$99)+(('Input sheet'!G127+C63)*'Norms and Assumptions'!P10*'Norms and Assumptions'!$B$100)+(('Input sheet'!G127+C63)*'Norms and Assumptions'!$B$104) -> 0 | E138: 0
A139: 1.1 | B139: =B64 -> Refuse Compactor | C139: =('Input sheet'!G122*'Norms and Assumptions'!O11*'Norms and Assumptions'!$B$99)+('Input sheet'!G122*'Norms and Assumptions'!P11*'Norms and Assumptions'!$B$100)+('Input sheet'!G122*'Norms and Assumptions'!$B$104) -> 0 | D139: =(('Input sheet'!G122+C64)*'Norms and Assumptions'!O11*'Norms and Assumptions'!$B$99)+(('Input sheet'!G122+C64)*'Norms and Assumptions'!P11*'Norms and Assumptions'!$B$100)+(('Input sheet'!G122+C64)*'Norms and Assumptions'!$B$104) -> 0 | E139: 0
A140: 1.11 | B140: =B93 -> Automated dead animal lifting vehicle | C140: =('Input sheet'!G121*'Norms and Assumptions'!O12*'Norms and Assumptions'!$B$99)+('Input sheet'!G121*'Norms and Assumptions'!P12*'Norms and Assumptions'!$B$100)+('Input sheet'!G121*'Norms and Assumptions'!$B$104) -> 0 | D140: =(('Input sheet'!G121+C93)*'Norms and Assumptions'!O12*'Norms and Assumptions'!$B$99)+(('Input sheet'!G121+C93)*'Norms and Assumptions'!P12*'Norms and Assumptions'!$B$100)+(('Input sheet'!G121+C93)*'Norms and Assumptions'!$B$104) -> 0 | E140: 0
A141: 1.12 | B141: =B65 -> Front End Loader (JCB) | C141: =('Input sheet'!G123*'Norms and Assumptions'!O13*'Norms and Assumptions'!$B$99)+('Input sheet'!G123*'Norms and Assumptions'!P13*'Norms and Assumptions'!$B$100)+('Input sheet'!G123*'Norms and Assumptions'!$B$104) -> 0 | D141: =(('Input sheet'!G123+C65)*'Norms and Assumptions'!O13*'Norms and Assumptions'!$B$99)+(('Input sheet'!G123+C65)*'Norms and Assumptions'!P13*'Norms and Assumptions'!$B$100)+(('Input sheet'!G123+C65)*'Norms and Assumptions'!$B$104) -> 0 | E141: 0
A142: 1.13 | B142: =B61 -> Single community bin lifter | C142: =('Input sheet'!G124*'Norms and Assumptions'!O14*'Norms and Assumptions'!$B$99)+('Input sheet'!G124*'Norms and Assumptions'!P14*'Norms and Assumptions'!$B$100)+('Input sheet'!G124*'Norms and Assumptions'!$B$104) -> 0 | D142: =(('Input sheet'!G124+C61)*'Norms and Assumptions'!O14*'Norms and Assumptions'!$B$99)+(('Input sheet'!G124+C61)*'Norms and Assumptions'!P14*'Norms and Assumptions'!$B$100)+(('Input sheet'!G124+C61)*'Norms and Assumptions'!$B$104) -> 0 | E142: 0
A143: 1.14 | B143: =B62 -> Twin community bin lifter | C143: =('Input sheet'!G125*'Norms and Assumptions'!O15*'Norms and Assumptions'!$B$99)+('Input sheet'!G125*'Norms and Assumptions'!P15*'Norms and Assumptions'!$B$100)+('Input sheet'!G125*'Norms and Assumptions'!$B$104) -> 0 | D143: =(('Input sheet'!G125+C62)*'Norms and Assumptions'!O15*'Norms and Assumptions'!$B$99)+(('Input sheet'!G125+C62)*'Norms and Assumptions'!P15*'Norms and Assumptions'!$B$100)+(('Input sheet'!G125+C62)*'Norms and Assumptions'!$B$104) -> 0 | E143: 0
A144: 1.15 | B144: =B66 -> Tractor Mounted Road Sweeper Vacuum Machine | C144: =('Input sheet'!D142*'Norms and Assumptions'!O16*'Norms and Assumptions'!$B$99)+('Input sheet'!D142*'Norms and Assumptions'!P16*'Norms and Assumptions'!$B$100)+('Input sheet'!D142*'Norms and Assumptions'!$B$104) -> 0 | D144: =(('Input sheet'!D142+C66)*'Norms and Assumptions'!O16*'Norms and Assumptions'!$B$99)+(('Input sheet'!D142+C66)*'Norms and Assumptions'!P16*'Norms and Assumptions'!$B$100)+(('Input sheet'!D142+C66)*'Norms and Assumptions'!$B$104) -> 0 | E144: 0
A145: 1.16 | B145: =B67 -> Tractor Mounted Road Broomer Machine | C145: =('Input sheet'!D143*'Norms and Assumptions'!O17*'Norms and Assumptions'!$B$99)+('Input sheet'!D143*'Norms and Assumptions'!P17*'Norms and Assumptions'!$B$100)+('Input sheet'!D143*'Norms and Assumptions'!$B$104) -> 0 | D145: =(('Input sheet'!D143+C67)*'Norms and Assumptions'!O17*'Norms and Assumptions'!$B$99)+(('Input sheet'!D143+C67)*'Norms and Assumptions'!P17*'Norms and Assumptions'!$B$100)+(('Input sheet'!D143+C67)*'Norms and Assumptions'!$B$104) -> 0 | E145: 0
A146: 1.17 | B146: =B99 -> Skid Steer Machine | C146: =('Input sheet'!G131*'Norms and Assumptions'!O18*'Norms and Assumptions'!$B$99)+('Input sheet'!G131*'Norms and Assumptions'!P18*'Norms and Assumptions'!$B$100)+('Input sheet'!G131*'Norms and Assumptions'!$B$104) -> 0 | D146: =(('Input sheet'!G131+C99)*'Norms and Assumptions'!O18*'Norms and Assumptions'!$B$99)+(('Input sheet'!G131+C99)*'Norms and Assumptions'!P18*'Norms and Assumptions'!$B$100)+(('Input sheet'!G131+C99)*'Norms and Assumptions'!$B$104) -> 0 | E146: 0
A147: 1.18 | B147: =B100 -> Small Excavator | C147: =('Input sheet'!G132*'Norms and Assumptions'!O19*'Norms and Assumptions'!$B$99)+('Input sheet'!G132*'Norms and Assumptions'!P19*'Norms and Assumptions'!$B$100)+('Input sheet'!G132*'Norms and Assumptions'!$B$104) -> 0 | D147: =(('Input sheet'!G132+C100)*'Norms and Assumptions'!O19*'Norms and Assumptions'!$B$99)+(('Input sheet'!G132+C100)*'Norms and Assumptions'!P19*'Norms and Assumptions'!$B$100)+(('Input sheet'!G132+C100)*'Norms and Assumptions'!$B$104) -> 0 | E147: 0
A148: 1.19 | B148: =B101 -> Litter Picker (capacity around 2 Tonne) | C148: =('Input sheet'!G133*'Norms and Assumptions'!O20*'Norms and Assumptions'!$B$99)+('Input sheet'!G133*'Norms and Assumptions'!P20*'Norms and Assumptions'!$B$100) -> 0 | D148: =(('Input sheet'!G133+C101)*'Norms and Assumptions'!O20*'Norms and Assumptions'!$B$99)+(('Input sheet'!G133+C101)*'Norms and Assumptions'!P20*'Norms and Assumptions'!$B$100) -> 0 | E148: 0
A149: Total operation cost | C149: =SUM(C130:C148) -> 0 | D149: =SUM(D130:D148) -> 0 | E149: =SUM(E130:E148) -> 0
A151: Total operation cost for year 2017-20 | C151: =C149+D149+E149 -> 0
A153: Maintenance cost
A154: 1 | B154: Name of Equipment | C154: Opex for Year 2017-18 (Amount in Rs.) | D154: Opex for Year 2018-19 (Amount in Rs.) | E154: Opex for Year 2019-20 (Amount in Rs.)
A155: =A130 -> 1.1 | B155: =B130 -> Hand Cart with 6 Bins | C155: ='Input sheet'!G106*'Norms and Assumptions'!M2*'Norms and Assumptions'!N2 -> 0 | D155: =('Input sheet'!G106+C48)*'Norms and Assumptions'!M2*'Norms and Assumptions'!N2 -> 0 | E155: =('Input sheet'!G106+C48)*'Norms and Assumptions'!M2*'Norms and Assumptions'!N2 -> 0
A156: =A131 -> 1.2 | B156: =B49 -> Tricycle with bins | C156: ='Input sheet'!G107*'Norms and Assumptions'!M3*'Norms and Assumptions'!N3 -> 0 | D156: =('Input sheet'!G107+C49)*'Norms and Assumptions'!M3*'Norms and Assumptions'!N3 -> 0 | E156: =('Input sheet'!G107+C49)*'Norms and Assumptions'!M3*'Norms and Assumptions'!N3 -> 0
A157: 1.3 | B157: =B50 -> 3-wheeler auto with tipping hopper | C157: ='Input sheet'!G108*'Norms and Assumptions'!M4*'Norms and Assumptions'!N4 -> 0 | D157: =('Input sheet'!G108+C50)*'Norms and Assumptions'!M4*'Norms and Assumptions'!N4 -> 0 | E157: =('Input sheet'!G108+C50)*'Norms and Assumptions'!M4*'Norms and Assumptions'!N4 -> 0
A158: 1.4 | B158: =B51 -> Mini tipper (4 wheel Mini Truck Container Mounted) | C158: ='Input sheet'!G109*'Norms and Assumptions'!M5*'Norms and Assumptions'!N5 -> 0 | D158: =('Input sheet'!G109+C51)*'Norms and Assumptions'!M5*'Norms and Assumptions'!N5 -> 0 | E158: =('Input sheet'!G109+C51)*'Norms and Assumptions'!M5*'Norms and Assumptions'!N5 -> 0
A159: 1.5 | B159: =B79 -> Mini tipper (Closed Body to collect hotel and restaurant kitchen waste) | C159: ='Input sheet'!G110*'Norms and Assumptions'!M6*'Norms and Assumptions'!N6 -> 0 | D159: =('Input sheet'!G110+C79)*'Norms and Assumptions'!M6*'Norms and Assumptions'!N6 -> 0 | E159: =('Input sheet'!G110+C79)*'Norms and Assumptions'!M6*'Norms and Assumptions'!N6 -> 0
A160: 1.6 | B160: =B52 -> Tractor with trolley | C160: ='Input sheet'!G111*'Norms and Assumptions'!M7*'Norms and Assumptions'!N7 -> 0 | D160: =('Input sheet'!G111+C52)*'Norms and Assumptions'!M7*'Norms and Assumptions'!N7 -> 0 | E160: =('Input sheet'!G111+C52)*'Norms and Assumptions'!M7*'Norms and Assumptions'!N7 -> 0
A161: 1.7 | B161: =B80 -> Tempo Truck | C161: ='Input sheet'!G126*'Norms and Assumptions'!M8*'Norms and Assumptions'!N8 -> 0 | D161: =('Input sheet'!G126+C80)*'Norms and Assumptions'!M8*'Norms and Assumptions'!N8 -> 0 | E161: =('Input sheet'!G126+C80)*'Norms and Assumptions'!M8*'Norms and Assumptions'!N8 -> 0
A162: 1.8 | B162: =B87 -> Open Body Truck with crane arm for C&D waste | C162: ='Input sheet'!G120*'Norms and Assumptions'!M9*'Norms and Assumptions'!N9 -> 0 | D162: =('Input sheet'!G120+C87)*'Norms and Assumptions'!M9*'Norms and Assumptions'!N9 -> 0 | E162: =('Input sheet'!G120+C87)*'Norms and Assumptions'!M9*'Norms and Assumptions'!N9 -> 0
A163: 1.9 | B163: =B63 -> Mini Compactor for secondary waste collection | C163: ='Input sheet'!G127*'Norms and Assumptions'!M10*'Norms and Assumptions'!N10 -> 0 | D163: =('Input sheet'!G127+C63)*'Norms and Assumptions'!M10*'Norms and Assumptions'!N10 -> 0 | E163: =('Input sheet'!G127+C63)*'Norms and Assumptions'!M10*'Norms and Assumptions'!N10 -> 0
A164: 1.1 | B164: =B64 -> Refuse Compactor | C164: ='Input sheet'!G122*'Norms and Assumptions'!M11*'Norms and Assumptions'!N11 -> 0 | D164: =('Input sheet'!G122+C64)*'Norms and Assumptions'!M11*'Norms and Assumptions'!N11 -> 0 | E164: =('Input sheet'!G122+C64)*'Norms and Assumptions'!M11*'Norms and Assumptions'!N11 -> 0
A165: 1.11 | B165: =B93 -> Automated dead animal lifting vehicle | C165: ='Input sheet'!G121*'Norms and Assumptions'!M12*'Norms and Assumptions'!N12 -> 0 | D165: =('Input sheet'!G121+C93)*'Norms and Assumptions'!M12*'Norms and Assumptions'!N12 -> 0 | E165: =('Input sheet'!G121+C93)*'Norms and Assumptions'!M12*'Norms and Assumptions'!N12 -> 0
A166: 1.12 | B166: =B65 -> Front End Loader (JCB) | C166: ='Input sheet'!G123*'Norms and Assumptions'!M13*'Norms and Assumptions'!N13 -> 0 | D166: =('Input sheet'!G123+C65)*'Norms and Assumptions'!M13*'Norms and Assumptions'!N13 -> 0 | E166: =('Input sheet'!G123+C65)*'Norms and Assumptions'!M13*'Norms and Assumptions'!N13 -> 0
A167: 1.13 | B167: =B61 -> Single community bin lifter | C167: ='Input sheet'!G124*'Norms and Assumptions'!M14*'Norms and Assumptions'!N14 -> 0 | D167: =('Input sheet'!G124+C61)*'Norms and Assumptions'!M14*'Norms and Assumptions'!N14 -> 0 | E167: =('Input sheet'!G124+C61)*'Norms and Assumptions'!M14*'Norms and Assumptions'!N14 -> 0
A168: 1.14 | B168: =B62 -> Twin community bin lifter | C168: ='Input sheet'!G125*'Norms and Assumptions'!M15*'Norms and Assumptions'!N15 -> 0 | D168: =('Input sheet'!G125+C62)*'Norms and Assumptions'!M15*'Norms and Assumptions'!N15 -> 0 | E168: =('Input sheet'!G125+C62)*'Norms and Assumptions'!M15*'Norms and Assumptions'!N15 -> 0
A169: 1.15 | B169: =B66 -> Tractor Mounted Road Sweeper Vacuum Machine | C169: ='Input sheet'!D142*'Norms and Assumptions'!M16*'Norms and Assumptions'!N16 -> 0 | D169: =('Input sheet'!D142+C66)*'Norms and Assumptions'!M16*'Norms and Assumptions'!N16 -> 0 | E169: =('Input sheet'!D142+C66)*'Norms and Assumptions'!M16*'Norms and Assumptions'!N16 -> 0
A170: 1.16 | B170: =B67 -> Tractor Mounted Road Broomer Machine | C170: ='Input sheet'!D143*'Norms and Assumptions'!M17*'Norms and Assumptions'!N17 -> 0 | D170: =('Input sheet'!D143+C67)*'Norms and Assumptions'!M17*'Norms and Assumptions'!N17 -> 0 | E170: =('Input sheet'!D143+C67)*'Norms and Assumptions'!M17*'Norms and Assumptions'!N17 -> 0
A171: 1.17 | B171: =B99 -> Skid Steer Machine | C171: ='Input sheet'!G131*'Norms and Assumptions'!M18*'Norms and Assumptions'!N18 -> 0 | D171: =('Input sheet'!G131+C99)*'Norms and Assumptions'!M18*'Norms and Assumptions'!N18 -> 0 | E171: =('Input sheet'!G131+C99)*'Norms and Assumptions'!M18*'Norms and Assumptions'!N18 -> 0
A172: 1.18 | B172: =B100 -> Small Excavator | C172: ='Input sheet'!G132*'Norms and Assumptions'!M19*'Norms and Assumptions'!N19 -> 0 | D172: =('Input sheet'!G132+C100)*'Norms and Assumptions'!M19*'Norms and Assumptions'!N19 -> 0 | E172: =('Input sheet'!G132+C100)*'Norms and Assumptions'!M19*'Norms and Assumptions'!N19 -> 0
A173: 1.19 | B173: =B101 -> Litter Picker (capacity around 2 Tonne) | C173: ='Input sheet'!G133*'Norms and Assumptions'!M20*'Norms and Assumptions'!N20 -> 0 | D173: =('Input sheet'!G133+C101)*'Norms and Assumptions'!M20*'Norms and Assumptions'!N20 -> 0 | E173: =('Input sheet'!G133+C101)*'Norms and Assumptions'!M20*'Norms and Assumptions'!N20 -> 0
A174: 1.2 | B174: =B70 -> Galvanized Trolley with capacity of 660 L | C174: ='Input sheet'!G116*'Norms and Assumptions'!M23*'Norms and Assumptions'!N23 -> 0 | D174: =('Input sheet'!G116+C68)*'Norms and Assumptions'!M23*'Norms and Assumptions'!N23 -> 0 | E174: =('Input sheet'!G116+C68)*'Norms and Assumptions'!M23*'Norms and Assumptions'!N23 -> 0
A175: 1.21 | B175: =B71 -> Galvanized Trolley with capacity of 1100 L | C175: ='Input sheet'!G117*'Norms and Assumptions'!M24*'Norms and Assumptions'!N24 -> 0 | D175: =('Input sheet'!G117+C69)*'Norms and Assumptions'!M24*'Norms and Assumptions'!N24 -> 0 | E175: =('Input sheet'!G117+C69)*'Norms and Assumptions'!M24*'Norms and Assumptions'!N24 -> 0
A176: Total maintenance cost | C176: =SUM(C155:C175) -> 0 | D176: =SUM(D155:D175) -> 0 | E176: =SUM(E155:E175) -> 0
A178: Total maintenance cost for year 2017-20 | C178: =C176+D176+E176 -> 0

Sheet Norms and Assumptions (hidden)
A1: Type of equipments/vehicles | B1: Norms | D1: Capacity in KG | E1: Capacity in MT | F1: Source | G1: Average life of equipment in years | L1: Name of Equipment | M1: Unit Rate (Amount in Rs.) | N1: Maintenance | O1: Driver | P1: Helper
A2: Hand Cart with 6 Bins | B2: =ROUNDUP(D2/$B$18,-1) -> 30 | C2: HHs | D2: 60 | E2: =D2/1000 -> 0.06 | F2: Table 2.3, SBM MSWM maual part 2 | G2: 3 | I2: =D2/B18 -> 26.66666667 | L2: ='Budget Summary'!B130 -> Hand Cart with 6 Bins | M2: 6800 | N2: 0.1 | O2: 1 | P2: 0
A3: Tricycle with bins | B3: =ROUNDUP(D3/$B$18,-1) -> 40 | C3: HHs | D3: 80 | E3: =D3/1000 -> 0.08 | F3: Table 2.3, SBM MSWM maual part 2 | G3: 3 | I3: =D3/B18 -> 35.55555556 | L3: ='Budget Summary'!B49 -> Tricycle with bins | M3: 25000 | N3: 0.1 | O3: 1 | P3: 0
A4: 3-wheeler auto with tipping hopper | B4: 160 | C4: HHs | D4: 350 | E4: 0.35 | F4: KUIDFC | G4: 5 | I4: =D4/$B$18 -> 155.5555556 | L4: ='Budget Summary'!B50 -> 3-wheeler auto with tipping hopper | M4: 325000 | N4: 0.15 | O4: 1 | P4: 1
A5: Mini Tipper (4 wheel Mini Truck Container Mounted) | B5: 450 | C5: HHs | D5: 1000 | E5: 1 | F5: As per ULBs of Gujarat | G5: 5 | I5: =D5/$B$18 -> 444.4444444 | L5: ='Budget Summary'!B51 -> Mini tipper (4 wheel Mini Truck Container Mounted) | M5: 800000 | N5: 0.2 | O5: 1 | P5: 1
A6: Mini Tipper (Closed Body to collect hotel and restaurant kitchen waste) | D6: 1500 | E6: 1.5 | G6: 5 | L6: ='Budget Summary'!B79 -> Mini tipper (Closed Body to collect hotel and restaurant kitchen waste) | M6: 1400000 | N6: 0.2 | O6: 1 | P6: 1
A7: Tempo Truck | D7: 4000 | E7: 4 | L7: ='Budget Summary'!B52 -> Tractor with trolley | M7: =450000+165000 -> 615000 | N7: 0.1 | O7: 1 | P7: 2
A8: Trolley (Trailor) | B8: 450 | C8: HHs | D8: 1000 | E8: 1 | F8: As per ULBs of Gujarat | G8: 3-5 | I8: =D8/$B$18 -> 444.4444444 | L8: ='Budget Summary'!B80 -> Tempo Truck | M8: 1200000 | N8: 0.2 | O8: 1 | P8: 2
A9: Galvanized Trolley 660 L | D9: 300 | E9: 0.3 | L9: ='Budget Summary'!B87 -> Open Body Truck with crane arm for C&D waste | M9: 3400000 | N9: 0.2 | O9: 1 | P9: 1
A10: Galvanized Trolley 1100 L | D10: 500 | E10: 0.5 | L10: ='Budget Summary'!B63 -> Mini Compactor for secondary waste collection | M10: 1650000 | N10: 0.2 | O10: 1 | P10: 2
A11: Community Bins (Containers - Green and Black) | E11: 0 | L11: ='Budget Summary'!B64 -> Refuse Compactor | M11: 2800000 | N11: 0.2 | O11: 1 | P11: 2
A12: Open Body Truck with Crane Arm | D12: 5000 | E12: 5 | L12: ='Budget Summary'!B93 -> Automated dead animal lifting vehicle | M12: 3000000 | N12: 0.2 | O12: 1 | P12: 2
A13: Mini Compactors | D13: 5000 | E13: 5 | L13: ='Budget Summary'!B65 -> Front End Loader (JCB) | M13: 2400000 | N13: 0.2 | O13: 1 | P13: 1
A14: Refuse Compactors | D14: 10000 | E14: 10 | L14: ='Budget Summary'!B61 -> Single community bin lifter | M14: 400000 | N14: 0.2 | O14: 1 | P14: 1
L15: ='Budget Summary'!B62 -> Twin community bin lifter | M15: 700000 | N15: 0.2 | O15: 1 | P15: 1
L16: ='Budget Summary'!B66 -> Tractor Mounted Road Sweeper Vacuum Machine | M16: 3100000 | N16: 0.2 | O16: 1 | P16: 0
L17: ='Budget Summary'!B67 -> Tractor Mounted Road Broomer Machine | M17: 600000 | N17: 0.2 | O17: 1 | P17: 0
A18: Total Waste Generation from 1 HH having 5 members (Kgs) | B18: =0.45*5 -> 2.25 | C18: It is assumed that per capita waste is 450 grams | L18: ='Budget Summary'!B99 -> Skid Steer Machine | M18: 2200000 | N18: 0.2 | O18: 1 | P18: 1
L19: ='Budget Summary'!B100 -> Small Excavator | M19: 2000000 | N19: 0.2 | O19: 1 | P19: 0
A20: Norms for waste generation (as per CPHEEO manual) | L20: ='Budget Summary'!B101 -> Litter Picker (capacity around 2 Tonne) | M20: 1000000 | N20: 0.2 | O20: 1 | P20: 0
A21: Population Range of ULB | B21: Average Waste (grams/capita/day) | L21: ='Budget Summary'!B68 -> Community Bins with capacity of 3 cu.mt. | M21: 40000 | N21: - | O21: 0 | P21: 0
A22: Population range upto 1 lakh | B22: 210 | L22: ='Budget Summary'!B69 -> Community Bins with capacity of 4.5 cu.mt. | M22: 50000 | N22: - | O22: 0 | P22: 0
A23: Population range 1 to 5 lakh | B23: 210 | L23: ='Budget Summary'!B70 -> Galvanized Trolley with capacity of 660 L | M23: 27000 | N23: 0.1 | O23: 0 | P23: 0
A24: Population range 5 to 10 lakh | B24: 250 | L24: ='Budget Summary'!B71 -> Galvanized Trolley with capacity of 1100 L | M24: 40000 | N24: 0.1 | O24: 0 | P24: 0
A25: Population range 10 to 20 lakh | B25: 270 | L25: Litter bins in the commercial/market areas (Capacity in litre) | M25: 1200 | N25: - | O25: 0 | P25: 0
L26: Animal incinerator | M26: 3000000
A27: Assumptions
A28: It is assumed that all equipments, vehicles and rolling stocks are procured by the ULB | L28: Equipment for street sweepers | M28: Unit Rate (Amount in Rs.)
A29: Particulars | B29: Requirement per year | C29: Frequency per year | L29: Long handle broom | M29: 80
A30: Long handle broom | B30: 4 | C30: once in 3 months | L30: Metal Tray (Dust Pan) | M30: 50
A31: Metal Tray (Dust Pan) | B31: 2 | C31: once in 6 months | L31: Metal Plate | M31: 50
A32: Metal Plate | B32: 2 | C32: once in 6 months | L32: Ghamela (Tagaru) | M32: 100
A33: Ghamela (Tagaru) | B33: 1 | C33: once in a year | L33: Spades (Paavdo) | M33: 130
A34: Spades (Paavdo) | B34: 1 | C34: once in a year
A35: Uniform (Pair) | B35: 2 | C35: once in 6 months | D35: =B35*M37 -> 2000
A36: Gloves | B36: 4 | C36: once in 3 months | D36: 200 | L36: Health Safety Gears for Sanitation Workers | M36: Unit Rate (Amount in Rs.)
A37: Gum Boots | B37: 1 | C37: once in a year | D37: 230 | L37: Uniform | M37: 1000
A38: Safety Mask | B38: 4 | C38: once in 3 months | D38: 80 | L38: Gloves | M38: 50
A39: Safety Jacket | B39: 1 | C39: once in a year | D39: 100 | L39: Gum Boots | M39: 230
A40: Rain Coat | B40: 1 | C40: once in a year | D40: 500 | L40: Safety Mask | M40: 20
D41: =SUM(D35:D40) -> 3110 | E41: Total cost of kit per person per year | L41: Safety Jacket | M41: 100
L42: Rain Coat | M42: 500
A43: Year | B43: Per capita waste generation
A44: 1996 | B44: 0.21 | L44: Unit rate of Household Bins (10 ltr) | M44: 125
A45: 1997 | B45: =B44+(B44*1.33%) -> 0.212793
A46: 1998 | B46: =B45+(B45*1.33%) -> 0.2156231469
A47: 1999 | B47: 0.2184909348
A48: 2000 | B48: 0.2213968642
A49: 2001 | B49: 0.2243414425
A50: 2002 | B50: 0.2273251837
A51: 2003 | B51: 0.2303486086
A52: 2004 | B52: 0.2334122451
A53: 2005 | B53: 0.236516628
A54: 2006 | B54: 0.2396622991
A55: 2007 | B55: 0.2428498077
A56: 2008 | B56: 0.2460797101
A57: 2009 | B57: 0.2493525703
A58: 2010 | B58: 0.2526689595
A59: 2011 | B59: 0.2560294566
A60: 2012 | B60: 0.2594346484
A61: 2013 | B61: 0.2628851292
A62: 2014 | B62: 0.2663815014
A63: 2015 | B63: 0.2699243754
A64: 2016 | B64: 0.2735143696
A65: 2017 | B65: 0.2771521107
A66: 2018 | B66: 0.2808382338
A67: 2019 | B67: 0.2845733823
A68: 2020 | B68: 0.2883582083
A69: 2021 | B69: 0.2921933725
A70: Source: SWM Master Plan, P-44
A73: Waste generated at source | B73: Assumed percentage
A74: Residential | B74: 0.4
A75: Commercial and Institutional Establishments | B75: 0.2
A76: Hotel and Restaurants Kitchen waste | B76: 0.025
A77: Special Markets like Vegetable, Flower etc. | B77: 0.025
A78: C&D Waste | B78: 0.1
A79: Street Sweeping | B79: 0.25
A80: Source: AMC SWM Master plan 2031
A83: Automated dead animal lifting vehicle
A84: Area | B84: No. of vehicles
A85: City area less than 50 sq.km. | B85: 1
A86: City area in between 51 to 100 sq.km. | B86: 2
A87: City area in between 101 to 300 sq.km. | B87: 3
A88: City area above 300 sq.km. | B88: 4
A90: Community bin lifter
A91: It is assumed that a community bin lifter can do max. 4 trips a day. Number of trips may vary based on the distance between bins placed and waste disposal site. If the ULB has both single and twin community bin lifter machies then 50% of total number of community bins will be lifted by both lifter machines each.
A92: Number of container bins can be lifted a day (single lifter) | B92: 4
A93: Number of container bins can be lifted a day (twin lifter) | B93: 8
A95: Refuse compactor
A96: Number of trips per day | B96: 2
A98: Assumption for O&M
A99: Salary of a driver p.a. | B99: =12000*12 -> 144000
A100: Salary of a helper p.a. | B100: =8000*12 -> 96000
A101: Travel/vehicle/day in km | B101: 100
A102: Fuel cost per km | B102: 15
A103: Total fuel cost per vehicle per day | B103: =B101*B102 -> 1500
A104: Total fuel cost per vehicle per annum | B104: =B103*365 -> 547500

Sheet Dropdown (hidden)
B1: Select option | D1: Select option
B2: Yes | D2: ULB itself
B3: No | D3: Private Agency
B4: NA
B5: Partially
B6: Select option
B7: Open Dump site
B8: Scientific Landfill site
B9: Processing / treatment site
B11: Area of the | C11: (in Acre)
B12: Capacity of the | C12: (in MT)
B13: Approx. distance of the | C13: (in km)
B15: operated and maintained by
